[Event "MČR v bleskovém šachu družstev 2019"]
[Site "Teplice, Czech Republic"]
[Date "2019.09.14"]
[Round "3.17"]
[White "Vykouk, Jan"]
[Black "Vojta, Tomas"]
[Result "1-0"]
[TimeControl "3 mim. + 2 s"]
[WhiteTitle "IM"]
[BlackTitle "FM"]
[BlackFideId "308781"]
[WhiteElo "2439"]
[BlackElo "2353"]

1. e4 {[%clk 00:03:02]} {[%emt 00:00:01]} d5 {[%clk 00:03:03]} {[%emt
00:00:01]} 2. exd5 {[%clk 00:03:02]} {[%emt 00:00:02]} Nf6 {[%clk 00:03:04]} 3.
Bb5+ {[%clk 00:03:03]} {[%emt 00:00:01]} Nbd7 {[%clk 00:03:05]} {[%emt
00:00:01]} 4. Nf3 {[%clk 00:02:58]} {[%emt 00:00:07]} Nxd5 {[%clk 00:03:06]}
{[%emt 00:00:02]} 5. d4 {[%clk 00:02:58]} {[%emt 00:00:02]} c6 {[%clk
00:03:06]} {[%emt 00:00:01]} 6. Be2 {[%clk 00:02:57]} {[%emt 00:00:03]} g6
{[%clk 00:03:06]} {[%emt 00:00:03]} 7. c4 {[%clk 00:02:54]} {[%emt 00:00:05]}
N5f6 {[%clk 00:03:06]} 8. Nc3 {[%clk 00:02:54]} {[%emt 00:00:02]} Bg7 {[%clk
00:03:07]} {[%emt 00:00:01]} 9. O-O {[%clk 00:02:54]} {[%emt 00:00:02]} O-O
{[%clk 00:03:07]} {[%emt 00:00:01]} 10. Bf4 {[%clk 00:02:54]} {[%emt 00:00:02]}
Nh5 {[%clk 00:03:01]} {[%emt 00:00:08]} 11. Be3 {[%clk 00:02:55]} {[%emt
00:00:02]} Qc7 {[%clk 00:03:03]} {[%emt 00:00:01]} 12. Qd2 {[%clk 00:02:55]}
{[%emt 00:00:02]} b6 {[%clk 00:02:52]} {[%emt 00:00:13]} 13. d5 {[%clk
00:02:49]} {[%emt 00:00:07]} Bb7 {[%clk 00:02:41]} {[%emt 00:00:13]} 14. dxc6
{[%emt 00:00:05]} Qxc6 {[%clk 00:02:41]} 15. Nd5 {[%clk 00:02:45]} {[%emt
00:00:04]} Qd6 {[%clk 00:02:25]} {[%emt 00:00:19]} 16. Rfd1 {[%clk 00:02:30]}
{[%emt 00:00:17]} Nc5 {[%clk 00:02:13]} {[%emt 00:00:13]} 17. Qc2 {[%clk
00:01:55]} {[%emt 00:00:37]} Bxd5 {[%clk 00:02:07]} {[%emt 00:00:08]} 18. Rxd5
{[%clk 00:01:54]} {[%emt 00:00:02]} Qc7 {[%clk 00:02:06]} {[%emt 00:00:05]} 19.
Rad1 {[%clk 00:01:53]} {[%emt 00:00:03]} Nf4 {[%clk 00:02:05]} {[%emt
00:00:03]} 20. R5d2 {[%clk 00:01:23]} {[%emt 00:00:31]} Nxe2+ {[%clk 00:02:03]}
{[%emt 00:00:04]} 21. Rxe2 {[%clk 00:01:24]} {[%emt 00:00:01]} Rfd8 {[%clk
00:01:59]} {[%emt 00:00:07]} 22. Red2 {[%clk 00:01:24]} {[%emt 00:00:02]} Rxd2
{[%clk 00:01:48]} {[%emt 00:00:12]} 23. Rxd2 {[%clk 00:01:25]} {[%emt
00:00:01]} Rc8 {[%clk 00:01:43]} {[%emt 00:00:08]} 24. b3 {[%clk 00:01:25]}
{[%emt 00:00:02]} a5 {[%clk 00:01:34]} {[%emt 00:00:10]} 25. h3 {[%clk
00:01:24]} {[%emt 00:00:03]} a4 {[%clk 00:01:24]} {[%emt 00:00:12]} 26. b4
{[%clk 00:00:56]} {[%emt 00:00:30]} Ne6 {[%clk 00:01:24]} {[%emt 00:00:02]} 27.
Qxa4 {[%clk 00:00:56]} {[%emt 00:00:02]} Qxc4 {[%clk 00:01:22]} {[%emt
00:00:04]} 28. Bxb6 {[%clk 00:00:50]} {[%emt 00:00:09]} Qc1+ {[%clk 00:01:00]}
{[%emt 00:00:23]} 29. Rd1 {[%clk 00:00:41]} {[%emt 00:00:11]} Qb2 {[%clk
00:01:01]} {[%emt 00:00:01]} 30. Be3 {[%clk 00:00:34]} {[%emt 00:00:09]} Bc3
{[%clk 00:00:54]} {[%emt 00:00:09]} 31. a3 {[%clk 00:00:30]} {[%emt 00:00:06]}
Bf6 {[%clk 00:00:50]} {[%emt 00:00:06]} 32. Qa6 {[%clk 00:00:26]} {[%emt
00:00:05]} Rc2 {[%clk 00:00:41]} {[%emt 00:00:12]} 33. b5 {[%clk 00:00:25]}
{[%emt 00:00:03]} Nf4 {[%clk 00:00:32]} {[%emt 00:00:11]} 34. Bxf4 {[%clk
00:00:22]} {[%emt 00:00:05]} Rxf2 {[%clk 00:00:33]} 35. Qc8+ {[%clk 00:00:22]}
{[%emt 00:00:02]} Kg7 {[%clk 00:00:34]} {[%emt 00:00:01]} 36. Rd2 {[%clk
00:00:10]} {[%emt 00:00:14]} Rxd2 {[%clk 00:00:29]} {[%emt 00:00:07]} 37. Bxd2
{[%clk 00:00:11]} {[%emt 00:00:02]} Qxb5 {[%clk 00:00:29]} {[%emt 00:00:02]} 38.
Qc2 {[%clk 00:00:09]} {[%emt 00:00:03]} h5 {[%clk 00:00:24]} {[%emt 00:00:07]}
39. a4 {[%clk 00:00:10]} {[%emt 00:00:02]} Qe2 {[%clk 00:00:25]} {[%emt
00:00:01]} 40. Qc1 {[%clk 00:00:09]} {[%emt 00:00:03]} Qa6 {[%clk 00:00:20]}
{[%emt 00:00:07]} 41. Qc2 {[%clk 00:00:06]} {[%emt 00:00:05]} h4 {[%clk
00:00:18]} {[%emt 00:00:04]} 42. Be3 {[%clk 00:00:05]} {[%emt 00:00:02]} Qe6
{[%clk 00:00:15]} {[%emt 00:00:05]} 43. Qf2 {[%clk 00:00:06]} {[%emt 00:00:01]}
Qa6 {[%clk 00:00:13]} {[%emt 00:00:05]} 44. Bd4 {[%clk 00:00:06]} {[%emt
00:00:02]} Qxa4 {[%clk 00:00:13]} {[%emt 00:00:02]} 45. Bxf6+ {[%clk 00:00:06]}
{[%emt 00:00:01]} exf6 {[%clk 00:00:14]} {[%emt 00:00:01]} 46. Qxh4 {[%clk
00:00:06]} {[%emt 00:00:02]} Qd1+ {[%clk 00:00:13]} {[%emt 00:00:03]} 47. Qe1
{[%clk 00:00:06]} {[%emt 00:00:02]} Qd3 {[%clk 00:00:13]} {[%emt 00:00:02]} 48.
Qf1 {[%clk 00:00:07]} {[%emt 00:00:01]} Qe3+ {[%clk 00:00:14]} {[%emt
00:00:02]} 49. Kh1 {[%clk 00:00:07]} {[%emt 00:00:01]} Qf4 {[%clk 00:00:15]}
{[%emt 00:00:01]} 50. Qf2 {[%clk 00:00:08]} Qc1+ {[%clk 00:00:16]} {[%emt
00:00:02]} 51. Kh2 {[%clk 00:00:09]} Qf4+ {[%clk 00:00:17]} {[%emt 00:00:01]}
52. Qg3 {[%clk 00:00:11]} Qc4 {[%clk 00:00:17]} {[%emt 00:00:02]} 53. Nh4
{[%clk 00:00:11]} {[%emt 00:00:02]} Qd5 {[%clk 00:00:15]} {[%emt 00:00:04]} 54.
Nf3 {[%clk 00:00:11]} {[%emt 00:00:01]} Qf5 {[%clk 00:00:15]} {[%emt 00:00:02]}
55. Qg4 {[%clk 00:00:11]} {[%emt 00:00:02]} Qd5 {[%clk 00:00:16]} 56. Qf4
{[%clk 00:00:12]} {[%emt 00:00:01]} Qb5 {[%clk 00:00:16]} {[%emt 00:00:02]} 57.
h4 {[%clk 00:00:13]} {[%emt 00:00:01]} Qc5 {[%clk 00:00:17]} {[%emt 00:00:02]}
58. g4 {[%clk 00:00:12]} {[%emt 00:00:02]} Qf2+ {[%clk 00:00:18]} {[%emt
00:00:01]} 59. Kh3 {[%clk 00:00:12]} {[%emt 00:00:02]} Qf1+ {[%clk 00:00:18]}
{[%emt 00:00:02]} 60. Kg3 {[%clk 00:00:13]} {[%emt 00:00:01]} Qd3 {[%clk
00:00:17]} {[%emt 00:00:03]} 61. g5 {[%clk 00:00:14]} {[%emt 00:00:01]} fxg5
{[%clk 00:00:16]} {[%emt 00:00:04]} 62. hxg5 {[%clk 00:00:14]} Qd5 {[%clk
00:00:13]} {[%emt 00:00:05]} 63. Qf6+ {[%clk 00:00:12]} {[%emt 00:00:04]} Kg8
{[%clk 00:00:14]} {[%emt 00:00:02]} 64. Ne5 {[%clk 00:00:12]} {[%emt 00:00:02]}
Qb3+ {[%clk 00:00:14]} {[%emt 00:00:01]} 65. Kf4 {[%clk 00:00:13]} {[%emt
00:00:01]} Qb4+ {[%clk 00:00:15]} {[%emt 00:00:02]} 66. Ke3 {[%clk 00:00:14]}
{[%emt 00:00:01]} Qc3+ {[%clk 00:00:15]} 67. Ke4 {[%clk 00:00:15]} Qb4+ {[%clk
00:00:16]} {[%emt 00:00:02]} 68. Kd5 {[%clk 00:00:16]} Qb5+ {[%clk 00:00:17]}
69. Kd6 {[%clk 00:00:15]} {[%emt 00:00:02]} Qb6+ {[%clk 00:00:18]} {[%emt
00:00:02]} 70. Ke7 {[%clk 00:00:11]} {[%emt 00:00:06]} Qc5+ {[%clk 00:00:16]}
{[%emt 00:00:05]} 71. Qd6 {[%clk 00:00:06]} {[%emt 00:00:07]} Qf2 {[%clk
00:00:14]} {[%emt 00:00:04]} 72. Qd8+ {[%clk 00:00:06]} {[%emt 00:00:02]} Kh7
{[%clk 00:00:15]} {[%emt 00:00:01]} 73. Nxf7 {[%clk 00:00:06]} {[%emt
00:00:02]} Qc5+ {[%clk 00:00:14]} {[%emt 00:00:02]} 74. Qd6 {[%clk 00:00:06]}
{[%emt 00:00:02]} Qa7+ {[%clk 00:00:11]} {[%emt 00:00:05]} 75. Qd7 {[%clk
00:00:06]} {[%emt 00:00:03]} Qe3+ {[%clk 00:00:09]} {[%emt 00:00:02]} 76. Kf8
{[%clk 00:00:05]} {[%emt 00:00:02]} Qc5+ {[%clk 00:00:09]} {[%emt 00:00:05]} 77.
Nd6+ {[%clk 00:00:06]} 1-0

[Event "MČR v bleskovém šachu družstev 2019"]
[Site "Teplice, Czech Republic"]
[Date "2019.09.14"]
[Round "3.18"]
[White "Zeman, Matyas"]
[Black "Studnicka, Tomas"]
[Result "0-1"]
[TimeControl "3 mim. + 2 s"]
[BlackTitle "IM"]
[WhiteFideId "364398"]
[WhiteElo "2094"]
[BlackElo "2215"]

1. e4 {[%clk 00:03:02]} {[%emt 00:00:01]} e5 {[%clk 00:03:03]} {[%emt
00:00:01]} 2. Nf3 {[%clk 00:03:03]} {[%emt 00:00:02]} Nf6 {[%clk 00:03:04]} 3.
Nxe5 {[%clk 00:03:00]} {[%emt 00:00:04]} d6 {[%clk 00:03:05]} 4. Nf3 {[%clk
00:03:00]} {[%emt 00:00:02]} Nxe4 {[%clk 00:03:06]} 5. Bd3 {[%clk 00:03:00]}
{[%emt 00:00:02]} Nf6 {[%clk 00:03:02]} {[%emt 00:00:07]} 6. O-O {[%clk
00:02:58]} {[%emt 00:00:03]} Be7 {[%clk 00:02:54]} {[%emt 00:00:10]} 7. c3
{[%clk 00:02:59]} {[%emt 00:00:02]} O-O {[%clk 00:02:45]} {[%emt 00:00:11]} 8.
Bc2 {[%clk 00:02:59]} {[%emt 00:00:01]} Bg4 {[%clk 00:02:45]} {[%emt 00:00:02]}
9. d4 {[%clk 00:02:59]} {[%emt 00:00:02]} Nbd7 {[%clk 00:02:44]} {[%emt
00:00:03]} 10. h3 {[%clk 00:03:00]} {[%emt 00:00:02]} Bh5 {[%clk 00:02:45]} 11.
Bf4 {[%clk 00:03:00]} {[%emt 00:00:01]} Re8 {[%clk 00:02:44]} {[%emt 00:00:04]}
12. Nbd2 {[%clk 00:02:50]} {[%emt 00:00:11]} a5 {[%clk 00:02:40]} {[%emt
00:00:06]} 13. a4 {[%clk 00:02:38]} {[%emt 00:00:13]} Nf8 {[%clk 00:02:37]}
{[%emt 00:00:06]} 14. Re1 {[%clk 00:02:30]} {[%emt 00:00:10]} Qd7 {[%clk
00:02:27]} {[%emt 00:00:12]} 15. Qb1 {[%clk 00:02:09]} {[%emt 00:00:22]} Bg6
{[%clk 00:02:28]} {[%emt 00:00:01]} 16. Bxg6 {[%clk 00:02:07]} {[%emt
00:00:05]} Nxg6 {[%clk 00:02:30]} {[%emt 00:00:01]} 17. Bg3 {[%clk 00:02:08]}
{[%emt 00:00:01]} b6 {[%clk 00:02:18]} {[%emt 00:00:14]} 18. Qd3 {[%clk
00:01:56]} {[%emt 00:00:13]} Qc6 {[%clk 00:02:19]} {[%emt 00:00:02]} 19. Ne4
{[%clk 00:01:45]} {[%emt 00:00:13]} Nxe4 {[%clk 00:02:11]} {[%emt 00:00:09]} 20.
Qxe4 {[%clk 00:01:46]} {[%emt 00:00:01]} Qd7 {[%clk 00:02:03]} {[%emt
00:00:10]} 21. Qd3 {[%clk 00:01:11]} {[%emt 00:00:37]} Bf6 {[%clk 00:02:04]}
{[%emt 00:00:01]} 22. d5 {[%clk 00:01:11]} {[%emt 00:00:02]} Rxe1+ {[%clk
00:02:03]} {[%emt 00:00:03]} 23. Rxe1 {[%clk 00:01:12]} Qxa4 {[%clk 00:02:01]}
{[%emt 00:00:04]} 24. Kh2 {[%clk 00:00:38]} {[%emt 00:00:36]} Re8 {[%clk
00:01:55]} {[%emt 00:00:08]} 25. Rxe8+ Qxe8 {[%clk 00:01:56]} 26. Qc4 {[%clk
00:00:38]} Qe7 {[%clk 00:01:55]} {[%emt 00:00:03]} 27. Nd4 {[%clk 00:00:25]}
{[%emt 00:00:16]} Bxd4 {[%clk 00:01:55]} {[%emt 00:00:02]} 28. Qxd4 {[%clk
00:00:25]} {[%emt 00:00:01]} h6 {[%clk 00:01:52]} {[%emt 00:00:05]} 29. f4
{[%clk 00:00:19]} {[%emt 00:00:08]} Qd7 {[%clk 00:01:39]} {[%emt 00:00:15]} 30.
Bf2 {[%clk 00:00:20]} {[%emt 00:00:02]} Ne7 {[%clk 00:01:39]} {[%emt 00:00:01]}
31. g4 {[%clk 00:00:15]} {[%emt 00:00:07]} Qb5 {[%emt 00:00:06]} 32. c4 Qc5
{[%clk 00:01:29]} {[%emt 00:00:07]} 33. Qxc5 {[%clk 00:00:16]} {[%emt
00:00:03]} dxc5 {[%clk 00:01:26]} {[%emt 00:00:05]} 34. b3 {[%clk 00:00:16]}
{[%emt 00:00:03]} Nc8 {[%clk 00:01:25]} {[%emt 00:00:02]} 35. f5 {[%clk
00:00:13]} {[%emt 00:00:05]} Nd6 {[%clk 00:01:23]} {[%emt 00:00:04]} 36. Bg3
{[%clk 00:00:14]} {[%emt 00:00:01]} Kf8 {[%clk 00:01:23]} {[%emt 00:00:01]} 37.
Bxd6+ {[%clk 00:00:07]} {[%emt 00:00:10]} cxd6 {[%clk 00:01:23]} {[%emt
00:00:02]} 38. Kg3 {[%clk 00:00:09]} Ke7 {[%clk 00:01:22]} {[%emt 00:00:03]} 39.
Kf4 {[%clk 00:00:10]} Kf6 {[%clk 00:01:23]} 40. h4 {[%clk 00:00:11]} {[%emt
00:00:02]} g5+ {[%clk 00:01:16]} {[%emt 00:00:08]} 41. hxg5+ {[%clk 00:00:07]}
{[%emt 00:00:06]} hxg5+ {[%clk 00:01:17]} {[%emt 00:00:01]} 42. Ke4 {[%clk
00:00:09]} Ke7 {[%clk 00:01:17]} {[%emt 00:00:03]} 43. Kd3 {[%clk 00:00:10]} f6
{[%clk 00:00:50]} {[%emt 00:00:29]} 44. Kc3 {[%clk 00:00:12]} Kd7 {[%emt
00:00:02]} 45. Kb2 Kc7 {[%clk 00:00:48]} {[%emt 00:00:05]} 46. Ka3 {[%clk
00:00:12]} {[%emt 00:00:03]} Kb7 {[%clk 00:00:49]} 47. Ka4 {[%clk 00:00:07]}
{[%emt 00:00:08]} Ka6 {[%clk 00:00:50]} {[%emt 00:00:01]} 48. Ka3 {[%clk
00:00:08]} {[%emt 00:00:01]} b5 {[%clk 00:00:51]} 49. Ka2 {[%clk 00:00:04]}
{[%emt 00:00:07]} a4 {[%clk 00:00:47]} {[%emt 00:00:06]} 0-1

[Event "MČR v bleskovém šachu družstev 2019"]
[Site "Teplice, Czech Republic"]
[Date "2019.09.14"]
[Round "3.19"]
[White "Cech, Pavel"]
[Black "Svanda, Ondrej"]
[Result "1/2-1/2"]
[TimeControl "3 mim. + 2 s"]
[WhiteTitle "IM"]
[BlackTitle "FM"]
[BlackFideId "359670"]
[WhiteElo "2387"]
[BlackElo "1924"]

1. d4 {[%clk 00:03:02]} {[%emt 00:00:02]} Nf6 {[%clk 00:03:03]} {[%emt
00:00:02]} 2. Bg5 {[%clk 00:03:02]} {[%emt 00:00:01]} c5 {[%clk 00:03:00]}
{[%emt 00:00:05]} 3. Bxf6 {[%clk 00:02:59]} {[%emt 00:00:05]} exf6 {[%clk
00:02:59]} {[%emt 00:00:02]} 4. d5 {[%clk 00:03:01]} {[%emt 00:00:02]} f5
{[%clk 00:02:59]} {[%emt 00:00:02]} 5. c4 {[%clk 00:02:57]} {[%emt 00:00:05]}
d6 {[%clk 00:02:58]} {[%emt 00:00:03]} 6. Nc3 {[%clk 00:02:56]} {[%emt
00:00:03]} g6 {[%clk 00:02:58]} {[%emt 00:00:02]} 7. g3 {[%clk 00:02:36]}
{[%emt 00:00:22]} Bg7 {[%clk 00:02:59]} {[%emt 00:00:01]} 8. Bg2 {[%clk
00:02:33]} {[%emt 00:00:05]} O-O {[%clk 00:02:59]} {[%emt 00:00:02]} 9. Nf3
{[%clk 00:02:34]} Nd7 {[%clk 00:02:52]} {[%emt 00:00:09]} 10. O-O {[%clk
00:02:32]} {[%emt 00:00:05]} Nf6 {[%clk 00:02:52]} {[%emt 00:00:01]} 11. Qc2
{[%clk 00:02:27]} {[%emt 00:00:08]} Re8 {[%clk 00:02:52]} {[%emt 00:00:02]} 12.
Nd2 {[%clk 00:02:22]} {[%emt 00:00:06]} Bd7 {[%clk 00:02:48]} {[%emt 00:00:06]}
13. e3 {[%clk 00:02:13]} {[%emt 00:00:11]} a6 {[%clk 00:02:47]} {[%emt
00:00:03]} 14. a4 {[%clk 00:02:07]} {[%emt 00:00:09]} b6 {[%clk 00:02:47]}
{[%emt 00:00:02]} 15. Rab1 {[%clk 00:02:04]} {[%emt 00:00:05]} a5 {[%clk
00:02:35]} {[%emt 00:00:14]} 16. Nb5 {[%clk 00:02:03]} {[%emt 00:00:03]} Bxb5
{[%clk 00:02:30]} {[%emt 00:00:07]} 17. axb5 {[%clk 00:01:49]} {[%emt
00:00:15]} Qe7 {[%clk 00:02:24]} {[%emt 00:00:08]} 18. b3 {[%clk 00:01:47]}
{[%emt 00:00:04]} Ne4 {[%clk 00:02:19]} {[%emt 00:00:08]} 19. Rbe1 {[%clk
00:01:03]} {[%emt 00:00:46]} Nxd2 {[%clk 00:01:53]} {[%emt 00:00:28]} 20. Qxd2
{[%clk 00:01:04]} {[%emt 00:00:01]} Qf6 {[%clk 00:01:53]} {[%emt 00:00:01]} 21.
Qa2 {[%clk 00:00:26]} {[%emt 00:00:41]} Ra7 {[%clk 00:01:38]} {[%emt 00:00:17]}
22. Re2 {[%clk 00:00:24]} {[%emt 00:00:04]} Rae7 {[%clk 00:01:37]} {[%emt
00:00:02]} 23. Rfe1 {[%clk 00:00:25]} {[%emt 00:00:02]} Qc3 {[%clk 00:01:34]}
{[%emt 00:00:05]} 24. Qc2 {[%clk 00:00:20]} {[%emt 00:00:06]} Qxc2 {[%clk
00:01:24]} {[%emt 00:00:12]} 25. Rxc2 {[%clk 00:00:21]} {[%emt 00:00:02]} h5
{[%clk 00:01:25]} 26. h4 {[%clk 00:00:22]} {[%emt 00:00:01]} Bf6 {[%clk
00:01:20]} {[%emt 00:00:06]} 27. Rd1 {[%clk 00:00:17]} {[%emt 00:00:08]} Kg7
{[%clk 00:01:20]} {[%emt 00:00:02]} 28. Ra2 {[%clk 00:00:18]} {[%emt 00:00:02]}
1/2-1/2

[Event "MČR v bleskovém šachu družstev 2019"]
[Site "Teplice, Czech Republic"]
[Date "2019.09.14"]
[Round "3.21"]
[White "Trepka, Jan"]
[Black "Novotny, Michal"]
[Result "0-1"]
[TimeControl "3 mim. + 2 s"]
[BlackTitle "FM"]
[WhiteFideId "322814"]
[BlackFideId "310980"]
[WhiteElo "2186"]
[BlackElo "2299"]

1. d4 {[%clk 00:03:02]} {[%emt 00:00:02]} e6 {[%clk 00:03:03]} 2. c4 {[%clk
00:03:03]} d5 {[%clk 00:03:04]} {[%emt 00:00:01]} 3. a3 {[%clk 00:03:04]}
{[%emt 00:00:01]} Nf6 {[%clk 00:03:04]} {[%emt 00:00:01]} 4. Nc3 {[%clk
00:03:05]} {[%emt 00:00:02]} Nc6 {[%clk 00:02:58]} {[%emt 00:00:08]} 5. Nf3
{[%clk 00:02:56]} {[%emt 00:00:11]} a6 {[%clk 00:03:00]} 6. c5 {[%clk
00:02:49]} {[%emt 00:00:08]} Ne4 {[%clk 00:02:46]} {[%emt 00:00:15]} 7. Qc2
{[%clk 00:02:34]} {[%emt 00:00:18]} f5 {[%clk 00:02:41]} {[%emt 00:00:07]} 8.
Bf4 {[%clk 00:02:29]} {[%emt 00:00:07]} Be7 {[%clk 00:02:38]} {[%emt 00:00:04]}
9. e3 {[%clk 00:02:28]} {[%emt 00:00:04]} O-O {[%clk 00:02:37]} {[%emt
00:00:02]} 10. h4 {[%clk 00:02:17]} {[%emt 00:00:14]} Bf6 {[%clk 00:02:28]}
{[%emt 00:00:11]} 11. Be2 {[%clk 00:02:00]} {[%emt 00:00:18]} Bd7 {[%clk
00:02:29]} {[%emt 00:00:02]} 12. b4 {[%clk 00:01:57]} {[%emt 00:00:05]} Ne7
{[%clk 00:02:25]} {[%emt 00:00:05]} 13. Nxe4 {[%clk 00:01:53]} {[%emt
00:00:06]} dxe4 {[%clk 00:02:23]} {[%emt 00:00:05]} 14. Ne5 {[%clk 00:01:52]}
{[%emt 00:00:03]} Nd5 {[%clk 00:02:17]} {[%emt 00:00:08]} 15. Bg3 {[%clk
00:01:50]} {[%emt 00:00:04]} Bb5 {[%clk 00:02:11]} {[%emt 00:00:08]} 16. Bc4
{[%clk 00:01:39]} {[%emt 00:00:13]} Bxc4 {[%clk 00:02:01]} {[%emt 00:00:11]} 17.
Qxc4 {[%clk 00:01:40]} {[%emt 00:00:01]} c6 {[%clk 00:01:59]} {[%emt 00:00:05]}
18. h5 {[%clk 00:01:37]} {[%emt 00:00:05]} Qe7 {[%clk 00:01:33]} {[%emt
00:00:27]} 19. a4 {[%clk 00:01:14]} {[%emt 00:00:26]} Rad8 {[%clk 00:01:29]}
{[%emt 00:00:06]} 20. b5 {[%clk 00:01:08]} {[%emt 00:00:08]} axb5 {[%clk
00:01:29]} {[%emt 00:00:02]} 21. axb5 {[%clk 00:01:09]} {[%emt 00:00:01]} Bxe5
{[%clk 00:01:30]} 22. Bxe5 {[%clk 00:01:10]} {[%emt 00:00:02]} f4 {[%clk
00:01:31]} 23. exf4 {[%clk 00:00:51]} {[%emt 00:00:22]} Nxf4 {[%clk 00:01:31]}
{[%emt 00:00:02]} 24. Bxf4 {[%clk 00:00:51]} Rxf4 {[%clk 00:01:31]} {[%emt
00:00:01]} 25. bxc6 {[%clk 00:00:45]} {[%emt 00:00:09]} bxc6 {[%clk 00:01:32]}
26. h6 {[%clk 00:00:30]} {[%emt 00:00:16]} Qf6 {[%clk 00:01:30]} {[%emt
00:00:05]} 27. O-O {[%clk 00:00:12]} {[%emt 00:00:20]} Qxh6 {[%clk 00:01:21]}
{[%emt 00:00:10]} 28. g3 {[%clk 00:00:13]} {[%emt 00:00:01]} Rf3 {[%clk
00:01:09]} {[%emt 00:00:15]} 29. Ra6 {[%clk 00:00:10]} {[%emt 00:00:06]} e3
{[%clk 00:01:08]} {[%emt 00:00:02]} 30. Rxc6 {[%clk 00:00:07]} {[%emt
00:00:05]} exf2+ {[%clk 00:01:09]} {[%emt 00:00:01]} 31. Rxf2 {[%clk 00:00:08]}
{[%emt 00:00:02]} Rxg3+ {[%clk 00:01:04]} {[%emt 00:00:06]} 32. Kf1 {[%clk
00:00:03]} {[%emt 00:00:07]} Qh1+ {[%clk 00:01:02]} {[%emt 00:00:04]} 33. Ke2
{[%clk 00:00:04]} {[%emt 00:00:01]} Qxc6 {[%clk 00:01:02]} {[%emt 00:00:02]}
0-1

[Event "MČR v bleskovém šachu družstev 2019"]
[Site "Teplice, Czech Republic"]
[Date "2019.09.14"]
[Round "3.22"]
[White "Rolinek, Dominik"]
[Black "Ruzicka, Ales"]
[Result "1/2-1/2"]
[TimeControl "3 mim. + 2 s"]
[WhiteFideId "384569"]
[BlackFideId "325252"]
[WhiteElo "1885"]
[BlackElo "2102"]

1. d4 {[%clk 00:03:03]} {[%emt 00:25:27]} Nf6 {[%clk 00:03:02]} {[%emt
00:00:02]} 2. Bf4 {[%clk 00:03:05]} {[%emt 00:00:01]} d5 {[%clk 00:03:02]}
{[%emt 00:00:01]} 3. Nf3 {[%clk 00:03:04]} {[%emt 00:00:03]} e6 {[%clk
00:03:03]} {[%emt 00:00:02]} 4. e3 {[%clk 00:02:57]} {[%emt 00:00:09]} c5
{[%clk 00:03:03]} {[%emt 00:00:01]} 5. c3 {[%clk 00:02:58]} Nc6 {[%clk
00:03:04]} {[%emt 00:00:02]} 6. Nbd2 {[%clk 00:02:52]} {[%emt 00:00:07]} Bd6
{[%clk 00:03:05]} {[%emt 00:00:02]} 7. Bg3 {[%clk 00:02:53]} {[%emt 00:00:01]}
O-O {[%clk 00:03:03]} {[%emt 00:00:03]} 8. Bd3 {[%clk 00:02:54]} {[%emt
00:00:01]} h6 {[%clk 00:03:02]} {[%emt 00:00:05]} 9. Ne5 {[%clk 00:02:47]}
{[%emt 00:00:09]} Bxe5 {[%clk 00:02:51]} {[%emt 00:00:12]} 10. dxe5 {[%clk
00:02:47]} {[%emt 00:00:02]} Nd7 {[%clk 00:02:51]} {[%emt 00:00:02]} 11. f4
{[%clk 00:02:41]} {[%emt 00:00:08]} f5 {[%clk 00:02:40]} {[%emt 00:00:13]} 12.
exf6 {[%clk 00:02:35]} {[%emt 00:00:08]} Nxf6 {[%clk 00:02:40]} {[%emt
00:00:02]} 13. O-O {[%clk 00:02:31]} {[%emt 00:00:06]} b6 {[%clk 00:02:36]}
{[%emt 00:00:07]} 14. Nf3 {[%clk 00:02:21]} {[%emt 00:00:11]} Bb7 {[%clk
00:02:31]} {[%emt 00:00:07]} 15. Qc2 {[%clk 00:02:17]} {[%emt 00:00:06]} c4
{[%clk 00:02:22]} {[%emt 00:00:11]} 16. Be2 {[%clk 00:02:17]} {[%emt 00:00:02]}
Ne4 {[%clk 00:02:20]} {[%emt 00:00:04]} 17. Nd4 {[%clk 00:02:11]} {[%emt
00:00:07]} Nxd4 {[%clk 00:02:08]} {[%emt 00:00:15]} 18. exd4 {[%clk 00:02:11]}
{[%emt 00:00:02]} b5 {[%clk 00:02:01]} {[%emt 00:00:09]} 19. Rae1 {[%clk
00:01:56]} {[%emt 00:00:17]} Qf6 {[%clk 00:02:01]} {[%emt 00:00:02]} 20. Bg4
{[%clk 00:01:48]} {[%emt 00:00:10]} Qg6 {[%clk 00:01:51]} {[%emt 00:00:12]} 21.
Qe2 {[%clk 00:01:47]} {[%emt 00:00:03]} a5 {[%clk 00:01:39]} {[%emt 00:00:15]}
22. Bh4 {[%clk 00:01:38]} {[%emt 00:00:10]} Qf7 {[%clk 00:01:16]} {[%emt
00:00:26]} 23. Bh5 {[%clk 00:01:36]} {[%emt 00:00:03]} g6 {[%clk 00:01:15]}
{[%emt 00:00:04]} 24. Bg4 {[%clk 00:01:32]} {[%emt 00:00:05]} b4 {[%clk
00:01:14]} {[%emt 00:00:03]} 25. Qe3 {[%clk 00:01:11]} {[%emt 00:00:22]} Kh7
{[%clk 00:01:12]} {[%emt 00:00:05]} 26. Bd1 {[%clk 00:00:55]} {[%emt 00:00:16]}
Bc6 {[%clk 00:01:12]} {[%emt 00:00:04]} 27. Bc2 {[%clk 00:00:55]} {[%emt
00:00:02]} Rab8 {[%clk 00:01:09]} {[%emt 00:00:05]} 28. Bg3 {[%clk 00:00:50]}
{[%emt 00:00:08]} bxc3 {[%clk 00:01:08]} {[%emt 00:00:02]} 29. bxc3 {[%clk
00:00:50]} {[%emt 00:00:02]} Rb2 {[%clk 00:01:08]} {[%emt 00:00:02]} 30. Bb1
{[%clk 00:00:48]} {[%emt 00:00:05]} Rfb8 {[%clk 00:01:02]} {[%emt 00:00:07]} 31.
f5 {[%clk 00:00:46]} {[%emt 00:00:05]} exf5 {[%clk 00:00:46]} {[%emt 00:00:17]}
32. Bxb8 {[%clk 00:00:47]} {[%emt 00:00:02]} Rxb8 {[%clk 00:00:46]} 33. Bxe4
{[%clk 00:00:46]} {[%emt 00:00:03]} dxe4 {[%clk 00:00:47]} {[%emt 00:00:02]} 34.
Qf4 {[%clk 00:00:44]} {[%emt 00:00:04]} Qa7 {[%clk 00:00:44]} {[%emt 00:00:04]}
35. Qd6 {[%clk 00:00:43]} {[%emt 00:00:02]} Be8 {[%clk 00:00:41]} {[%emt
00:00:05]} 36. Rb1 {[%clk 00:00:43]} {[%emt 00:00:03]} Rxb1 {[%clk 00:00:31]}
{[%emt 00:00:13]} 37. Rxb1 {[%clk 00:00:44]} Bf7 {[%clk 00:00:29]} {[%emt
00:00:05]} 38. Rb6 {[%clk 00:00:37]} {[%emt 00:00:08]} e3 {[%clk 00:00:26]}
{[%emt 00:00:05]} 39. Kf1 {[%clk 00:00:31]} {[%emt 00:00:09]} e2+ {[%clk
00:00:24]} {[%emt 00:00:04]} 40. Kxe2 {[%clk 00:00:31]} {[%emt 00:00:02]} Qa8
{[%clk 00:00:24]} {[%emt 00:00:02]} 41. Qc6 {[%clk 00:00:28]} {[%emt 00:00:04]}
Qd8 {[%clk 00:00:21]} {[%emt 00:00:05]} 42. Rb7 {[%clk 00:00:27]} {[%emt
00:00:03]} Kg7 {[%clk 00:00:19]} {[%emt 00:00:04]} 43. Qd7 {[%clk 00:00:24]}
{[%emt 00:00:05]} Qf8 {[%clk 00:00:17]} {[%emt 00:00:05]} 44. Ke3 {[%clk
00:00:19]} {[%emt 00:00:06]} 1/2-1/2